Cogmind - Beta 12 @@@ ROGUE MODE // 2023.05.01 @ 16:40:13 Player: Mr Goldstein Result: Self-destructed Performance ------------- Evolutions (3) 1500 Regions Visited (5) 1000 Robots Destroyed (5) 25 Value Destroyed (180) 180 Prototype IDs (0) 0 Alien Tech Used (0) 0 Bonus (834) 834 TOTAL SCORE: 3539 Bonus ------- Pacifist 834 Cogmind --------- Core Integrity 311/700 Matter 29/300 Energy 100/100 System Corruption 1% Temperature Cool (0) Movement Core (200) Ox3 Location -7/Factory Parts ------- > --- POWER (2) -------- (None) > --- PROPULSION (2) --- (None) > --- UTILITY (6) ------ Hacking Suite > --- WEAPON (3) ------- Heavy Rocket Launcher Great Maul > --- INVENTORY (5) ---- Improved Medium Armor Plating Layered Light Armor Plating Peak State ------------ > --- POWER ------------ (None) > --- PROPULSION ------- Medium Treads > --- UTILITY ---------- Transmission Jammer Layered Light Armor Plating Hacking Suite > --- WEAPON ----------- (None) > --- INVENTORY -------- Improved Medium Armor Plating Heavy Rocket Launcher Heavy Rocket Launcher Great Maul [Rating: 16] Favorites ----------- Power None Propulsion Flight Unit Treads Medium Treads Flight Unit Flight Unit Utility Transmission Jammer Device Transmission Jammer Hackware Hacking Suite Protection Layered Light Armor Plating Weapon Heavy Rocket Launcher Launcher Heavy Rocket Launcher Impact Weapon Great Maul Build | -11 -10 -9 -9 -8 -7 ------- Run | Jun Mat Mat Min Mat Fac Slots Evolved 6 | . . 2 . 2 2 Power 1 | . . . . . 1 Propulsion . | . . . . . . Utility 4 | . . 2 . 2 . Weapon 1 | . . . . . 1 Parts Attached 14 | . . . 2 1 11 Power . | . . . . . . Engine . | . . . . . . Core . | . . . . . . Reactor . | . . . . . . Propulsion 4 | . . . 2 . 2 Treads 1 | . . . . . 1 Leg . | . . . . . . Wheel . | . . . . . . Hover . | . . . . . . Flight 3 | . . . 2 . 1 Utility 3 | . . . . 1 2 Device 1 | . . . . 1 . Storage . | . . . . . . Processor . | . . . . . . Hackware 1 | . . . . . 1 Protection 1 | . . . . . 1 Artifact . | . . . . . . Weapon 7 | . . . . . 7 Energy Gun . | . . . . . . Energy Cannon . | . . . . . . Ballistic Gun . | . . . . . . Ballistic Cannon . | . . . . . . Launcher 5 | . . . . . 5 Special Weapon . | . . . . . . Impact Weapon 2 | . . . . . 2 Slashing Weapon . | . . . . . . Piercing Weapon . | . . . . . . Special Melee Weapon . | . . . . . . Unidentified Prototypes . | . . . . . . Parts Lost 6 | . . . . 2 4 Power . | . . . . . . Propulsion 4 | . . . . 2 2 Utility 1 | . . . . . 1 Weapon 1 | . . . . . 1 Highest Loss Streak 2 | . . . . 2 2 To Critical Strikes . | . . . . . . Average Slot Usage (%) 12 | . . . . 22 15 Treads 1 | . . . . . 3 Flight 3 | . . . . 14 1 Device 4 | . . . . 7 5 Hackware 1 | . . . . . 2 Naked Turns 138 | . 57 52 29 . . Heaviest Build 11 | . . . . 1 11 Greatest Support 8 | 3 3 3 8 8 4 Greatest Overweight (x) 3 | . . . . . 3 Average Overweight (x) . | . . . . . . Largest Inventory Capacity 5 | 5 5 5 5 5 5 Average Capacity 5 | 5 5 5 5 5 5 Most Carried 5 | . . . . 2 5 Average Carried 2 | . . . . 1 3 Final Capacity 5 | 5 5 5 5 5 5 Final Carried 2 | . . . . 2 2 Class Distribution -------------------- 100% | Mutant Dominant Class ---------------- Mutant | -10/Materials Mutant | -9/Materials Mutant | -9/Mines Mutant | -8/Materials Mutant | -7/Factory Resources | -11 -10 -9 -9 -8 -7 ----------- Run | Jun Mat Mat Min Mat Fac Matter Collected 178 | 137 . . 25 . 16 Remotely . | . . . . . . Salvage Created 84 | . . . . . 84 Parts 9 | . . . . . 9 Haulers Intercepted . | . . . . . . Recyclers Shooed . | . . . . . . Parts Field Recycled . | . . . . . . Retrieved Matter . | . . . . . . Parts Self-Destructed . | . . . . . . Prevented . | . . . . . . Kills | -11 -10 -9 -9 -8 -7 ------- Run | Jun Mat Mat Min Mat Fac Combat Hostiles Destroyed 4 | . . . . . 4 AOE 4 | . . . . . 4 Classes Destroyed 3 | . . . . . 3 Operator 1 | . . . . . 1 Swarmer 3 | . . . . . 3 Hunter 1 | . . . . . 1 Best Kill Streak 3 | . . . . . 3 Combat Bots Only 3 | . . . . . 3 Max Kills in Single Turn 2 | . . . . . 2 Gunslinging . | . . . . . . Exploded 2 | . . . . . 2 Melee . | . . . . . . Uniques/NPCs Destroyed . | . . . . . . Combat | -11 -10 -9 -9 -8 -7 -------- Run | Jun Mat Mat Min Mat Fac Damage Taken 1234 | . 70 94 151 164 755 Core 817 | . 70 94 144 120 389 Absorbed by Shields . | . . . . . . Core Remaining (%) 72 | 100 72 . 40 78 . Volleys Fired 12 | . . . . . 12 Largest 1 | . . . . . 1 Hottest 39 | . . . . . 39 Shots Fired 12 | . . . . . 12 Gun . | . . . . . . Cannon . | . . . . . . Launcher 12 | . . . . . 12 Special . | . . . . . . Kinetic . | . . . . . . Thermal . | . . . . . . Explosive 12 | . . . . . 12 Electromagnetic . | . . . . . . Robot Hit Streak 2 | . . . . . 2 Robot Miss Streak 1 | . . . . . 1 Penetration Max . | . . . . . . Secondary Targets . | . . . . . . Shots Hit Robots 2 | . . . . . 2 Core Hits 8 | . . 2 . . 6 Critical Kills . | . . . . . . Critical Parts Destroyed . | . . . . . . Critical Strikes . | . . . . . . Melee Attacks 3 | . . . . . 3 Impact 3 | . . . . . 3 Slashing . | . . . . . . Piercing . | . . . . . . Sneak Attacks . | . . . . . . Combat Hostiles . | . . . . . . Follow-up Attacks . | . . . . . . Damage Inflicted 504 | . 3 10 13 . 478 Guns . | . . . . . . Cannons . | . . . . . . Explosions 476 | . . . . . 476 Melee . | . . . . . . Ramming 28 | . 3 10 13 . 2 Kinetic . | . . . . . . Thermal . | . . . . . . Explosive 476 | . . . . . 476 Electromagnetic . | . . . . . . Impact . | . . . . . . Slashing . | . . . . . . Piercing . | . . . . . . Highest Corruption 1 | . . . 1 . 1 Average Corruption 1 | . . . 1 . 1 Corruption Purged . | . . . . . . Corruption Blocked . | . . . . . . Effects 3 | . . . 1 . 2 Matter Fused 1 | . . . . . 1 Heat Flow Errors 1 | . . . 1 . . Energy Discharges 1 | . . . . . 1 Overload Shots . | . . . . . . Overflow Damage 77 | . . . . . 77 Projectiles . | . . . . . . Explosions 77 | . . . . . 77 Melee . | . . . . . . Knockbacks . | . . . . . . Impact . | . . . . . . Kinetic . | . . . . . . Secondary . | . . . . . . Self-Inflicted Damage 157 | . 1 4 5 . 147 Shots 6 | . . . . . 6 Rammed 10 | . 1 3 5 . 1 Targets Rammed 10 | . 1 3 5 . 1 Kicked . | . . . . . . Crushed . | . . . . . . Highest Temperature 267 | . . . 267 . . Average Temperature 141 | . . . 141 . . Received Heat Transfer 168 | . 36 . . 18 114 Siege Activations . | . . . . . . Robots Corrupted . | . . . . . . Combat Hostiles . | . . . . . . Parts Fried . | . . . . . . Impact Corruptions . | . . . . . . Robots Melted . | . . . . . . Combat Hostiles . | . . . . . . Parts Melted . | . . . . . . Heat Transferred . | . . . . . . Parts Sabotaged . | . . . . . . Parts Stolen . | . . . . . . Parts Stripped . | . . . . . . Power Chain Reactions . | . . . . . . Missiles Intercepted . | . . . . . . Alert | -11 -10 -9 -9 -8 -7 ------- Run | Jun Mat Mat Min Mat Fac Peak Influence 347 | . 45 63 24 84 347 Initial 35 | . . 18 24 9 35 Average 121 | . 20 35 24 38 190 Maximum Alert Level 1 | . . . . . 1 Low Security (%) 73 | 100 100 100 100 100 52 Level 1 26 | . . . . . 47 Level 2 . | . . . . . . Level 3 . | . . . . . . Level 4 . | . . . . . . Level 5 . | . . . . . . High Security . | . . . . . . Max Security . | . . . . . . Squads Dispatched 8 | . 2 . . 2 4 Investigation 5 | . 1 . . 1 3 Extermination 1 | . . . . . 1 Reinforcement 2 | . 1 . . 1 . Assault . | . . . . . . Garrison . | . . . . . . Intercept . | . . . . . . Searches Triggered . | . . . . . . Construction Impeded . | . . . . . . Haulers Reinforced . | . . . . . . Active Scanning Responses . | . . . . . . Cargo Convoy Interrupts . | . . . . . . Stealth | -11 -10 -9 -9 -8 -7 --------- Run | Jun Mat Mat Min Mat Fac Distress Signals 3 | . 2 . . 1 . Communications Jammed . | . . . . . . Distress Signals . | . . . . . . Times Spotted 42 | . 6 4 4 15 13 Peak Tracking Total 14 | . 7 4 4 14 5 Tactical Retreats 6 | . . 1 . 2 3 Traps | -11 -10 -9 -9 -8 -7 ------- Run | Jun Mat Mat Min Mat Fac Traps Triggered 1 | . 1 . . . . Indirectly . | . . . . . . Trap Hack Attempts . | . . . . . . Triggered . | . . . . . . Disarmed . | . . . . . . Reprogrammed . | . . . . . . Reused . | . . . . . . Traps Extracted . | . . . . . . Installed . | . . . . . . Triggered . | . . . . . . Machines | -11 -10 -9 -9 -8 -7 ---------- Run | Jun Mat Mat Min Mat Fac Machines Disabled 2 | . . . . . 2 Max in Single Turn 2 | . . . . . 2 Machines Repaired . | . . . . . . Machines Sabotaged . | . . . . . . Overloaded Fab Kills . | . . . . . . Hacking | -11 -10 -9 -9 -8 -7 --------- Run | Jun Mat Mat Min Mat Fac Machines Accessed 5 | . . . . 1 4 Terminals 4 | . . . . 1 3 Fabricators 1 | . . . . . 1 Repair Stations . | . . . . . . Recycling Units . | . . . . . . Scanalyzers . | . . . . . . Garrison Access . | . . . . . . Total Hacks 13 | . . . . 2 11 Successful 1 | . . . . . 1 Failed 12 | . . . . 2 10 Catastrophic 4 | . . . . 1 3 Database Lockouts . | . . . . . . Manual 11 | . . . . 2 9 Terminals 10 | . . . . 2 8 Fabricators 3 | . . . . . 3 Repair Stations . | . . . . . . Recycling Units . | . . . . . . Scanalyzers . | . . . . . . Garrison Access . | . . . . . . Terminal Hacks . | . . . . . . Fabricator Hacks . | . . . . . . Repair Station Hacks . | . . . . . . Recycling Unit Hacks . | . . . . . . Scanalyzer . | . . . . . . Garrison Access Hacks . | . . . . . . Unauthorized Hacks 1 | . . . . . 1 Terminals 1 | . . . . . 1 Botnet 1 | . . . . . 1 Fabricators . | . . . . . . Repair Stations . | . . . . . . Recycling Units . | . . . . . . Scanalyzers . | . . . . . . Garrison Access . | . . . . . . Data Cores Recovered . | . . . . . . Used . | . . . . . . Hacking Detections 5 | . . . . 1 4 Full Trace Events 4 | . . . . 1 3 Feedback Events . | . . . . . . Feedback Blocked . | . . . . . . Robot Schematics Acquired . | . . . . . . Robots Built . | . . . . . . Authchips . | . . . . . . Time . | . . . . . . Total Robot Build Rating . | . . . . . . Part Schematics Acquired . | . . . . . . Parts Built . | . . . . . . Authchips . | . . . . . . Time . | . . . . . . Total Part Build Rating . | . . . . . . Parts Repaired . | . . . . . . Time . | . . . . . . Parts Recycled . | . . . . . . Recycled Matter . | . . . . . . Retrieved Matter . | . . . . . . Retrieved Components . | . . . . . . Parts Scanalyzed . | . . . . . . Part Schematics Acquired . | . . . . . . Parts Damaged . | . . . . . . Bothacking | -11 -10 -9 -9 -8 -7 ------------ Run | Jun Mat Mat Min Mat Fac Used RIF Installer . | . . . . . . Robots Hacked . | . . . . . . Non-combat . | . . . . . . Combat . | . . . . . . Robot Hacks Applied . | . . . . . . Relay Couplers Released . | . . . . . . Fabnet Peak Effective % . | . . . . . . Robots Rewired . | . . . . . . Allies Hacked . | . . . . . . Hacks Repelled . | . . . . . . Allies | -11 -10 -9 -9 -8 -7 -------- Run | Jun Mat Mat Min Mat Fac Total Allies . | . . . . . . Largest Group . | . . . . . . Highest-Rated Group . | . . . . . . Highest-Rated Ally . | . . . . . . Total Orders . | . . . . . . Ally Attacks . | . . . . . . Total Damage . | . . . . . . Kills . | . . . . . . Allies Corrupted . | . . . . . . Allies Melted . | . . . . . . Intel | -11 -10 -9 -9 -8 -7 ------- Run | Jun Mat Mat Min Mat Fac Robot Analysis Total . | . . . . . . Derelict Logs Recovered . | . . . . . . Drone Launches . | . . . . . . Drone Recoveries . | . . . . . . Exploration | -11 -10 -9 -9 -8 -7 ------------- Run | Jun Mat Mat Min Mat Fac Turns Passed 543 | 11 57 52 38 75 310 Spaces Moved 1013 | 21 111 97 65 187 532 Core 645 | 21 111 97 47 12 357 Treads . | . . . . . . Legs . | . . . . . . Wheels . | . . . . . . Hover . | . . . . . . Flight 368 | . . . 18 175 175 Fastest Speed 35 | 50 50 50 37 37 35 Average Speed 46 | 50 50 50 46 38 47 Slowest Speed 200 | 50 50 50 50 50 200 Overloaded Moves . | . . . . . . Propulsion Burnouts . | . . . . . . Robots Hopped 12 | . . . . 7 5 Cave-ins Triggered . | . . . . . . Exploration Rate (%) 22 | 3 34 17 18 40 20 Regions Visited 5 Branch Regions 1 Pre-discovered Areas . | . . . . . . Known Exits Taken . | . . . . . . Unknown Exits Taken 5 | 1 1 1 1 1 . Scrap Searched 1 | . . . 1 . . Spaces Dug 126 | . . . . . 126 Terrain Destroyed 164 | . . . . . 164 Melee 3 | . . . . . 3 Projectile . | . . . . . . AOE 161 | . . . . . 161 Terrain Rammed . | . . . . . . Walls Destroyed . | . . . . . . Machines Disabled . | . . . . . . Actions | -11 -10 -9 -9 -8 -7 --------- Run | Jun Mat Mat Min Mat Fac Total 1048 | 20 111 99 71 182 565 Wait 2 | . . . . . 2 Move 986 | 20 110 96 64 174 522 Hop 10 | . . . . 5 5 Pick Up 6 | . . . . 2 4 Fast Attach 5 | . . . 2 1 2 Attach 9 | . . . . . 9 Detach 5 | . . . . . 5 Swap . | . . . . . . Drop . | . . . . . . Fire 12 | . . . . . 12 Melee 3 | . . . . . 3 Ram 10 | . 1 3 5 . 1 Kick . | . . . . . . Crush . | . . . . . . Escape Stasis . | . . . . . . Rewire . | . . . . . . Trap . | . . . . . . Miscellaneous . | . . . . . . Route ------- -11/Junkyard -10/Materials -9/Materials -9/Mines (discovered 2 exits: *Mat x2) -8/Materials -7/Factory (discovered 1 exit: [*Low]) History --------- Turn | Location | Event 3 | -11/Junkyard | Discovered new exit (range 15) 12 | -11/Junkyard | Entered Materials 60 | -10/Materials | Discovered new exit (range 16) 69 | -10/Materials | Entered another Materials area 69 | -9/Materials | Evolved 2 slots: Utility x2 111 | -9/Materials | Discovered new exit (range 9) 121 | -9/Materials | Entered Mines 121 | -9/Mines | Discovered new exit (range 12) 131 | -9/Mines | Discovered new exit (range 7) 144 | -9/Mines | A weapon hastily lodged in a ceiling crevice suddenly fell to the ground 148 | -9/Mines | Core integrity fell below 50% 159 | -9/Mines | Entered Materials 159 | -8/Materials | Evolved 2 slots: Utility x2 227 | -8/Materials | Discovered new exit (range 15) 234 | -8/Materials | Entered Factory 234 | -7/Factory | Evolved 2 slots: Power x1, Weapon x1 318 | -7/Factory | Build established: Mutant 419 | -7/Factory | Discovered new exit (range 4) 492 | -7/Factory | Core integrity fell below 50% 544 | -7/Factory | Self-destructed Last Messages --------------- 00426_ Acquired Great Maul. 00429_ Connecting with Terminal... 00429_ ALERT: Suspicious activity at Terminal F020. Dispatching Investigation squad. 00452_ Acquired Lyr. Light Armor Plating. 00475_ Penetrated by Slug. 00481_ Transmission Jammer destroyed. 00481_ Med. Treads destroyed. 00484_ ALERT: Rogue bot located, Programmers report to Factory Zone 4C. 00484_ Penetrated by Slug. 00485_ Slug penetrates Fabricator. 00491_ Penetrated by Slug. 00492_ System corrupted: Energy discharge (-23). 00494_ Connecting with Fabricator... 00494_ ALERT: Suspicious activity at Fabricator F001. Dispatching Investigation squad. 00525_ Hvy. Rocket Launcher destroyed. 00525_ Destroyed Hvy. Rocket Launcher. 00530_ The unstable cave ceiling collapses. 00542_ H-55 Commando destroyed. Map ----- +----------------------------------------------------+ | ?????????????????????????????? | | ?????????????????????????????? | | ?????????????????????????????? | | ?????????????????????????????? | | ?????????????????????????????? | | ?????????????????????????????? | | ?????????????????????????????? | | ?????????????????????????????? | | ?????????????????????????????? | | ?????????????????????????????? | | ???????????????????########### | | ???????????????????# | | ???????????????????# | | ???????????????????# """ """ | | ???????????????????# """ """ | | ???????????????????# """ """ | | ???#######?????????# """ """ | | ???# ##????????# | | ??? ########## """ """ | | ??? !%*= """ """ | | ???# h ########### """ """ | | ?### ??????????# """ | | ?# ##?????????# | | ?# #?????????# """ """ | | ?## ##????????# """ """ | | ?# @ #????????# """ """ | | ?# # #????????# """ | | ?# # ##????????# | | ? # #????????# | | ## #????????### ## | | ? #??????????# #? | | # ##??????????# #? | | # #???????????# #? | | # ???????????# +? | | ### #???????????# #? | | ?? #???????????###### #? | | ??# ##????????????????# #? | | ??#######?????????????????? #? | | ??????????????????????????? #? | | ??????????????????????????? #? | | ??????????????????????????? #? | | ??????????????????????????? ?? | | ??????????????????????????? ?? | | ??????????????????????????? ?? | | ?????????????????????????????? | | ?????????????????????????????? | | ?????????????????????????????? | | ?????????????????????????????? | | ?????????????????????????????? | | ?????????????????????????????? | +----------------------------------------------------+ Best States ------------- Heat Dissipation 34 Energy Generation 5 Energy Capacity 100 Matter Stores 294 Matter Capacity 300 Sight Range 16 Terrain Scan Density 10 Evasion (%) 63 Offensive Hacking 10 Item Schematics ----------------- None Robot Schematics ------------------ None Fabricated ------------ Nothing Alien Tech Used ----------------- None Achievements -------------- None Challenges ------------ None Game ------ Seed CompactRestorationDiverter Manual? 0 Play Time 00:08:01 Cumulative 163.0 hours Start 2023.05.01 @ 16:24:53 End 2023.05.01 @ 16:40:13 Sessions 1 Manual Loads 0 Difficulty Rogue Special Mode None Game No. 487 Rogue 487 Adventurer 0 Explorer 0 Win Type - Total 8 Types 7/0/0/1/0/0/0/0/0 Lore% 68 Gallery% 73 Achievement% 64 Wizard Run 0 Options --------- ASCII 0 Keyboard 0 Movement Numpad Keybinds 0 Fullscreen 1 Font 16/SmallcapsGlow Map View 75x55 Tactical HUD 1 Map Filters NONE Filters NONE Steam 1 RUN: 50e8a238-4a99-4f0a-9c87-97e6b34f9c81